bitfinex/quotes_SOLUSD_20251208
["timestamp","ask_amount","ask_price","bid_price","bid_amount"]
[1765223904576,14.35400646,133.99,133.97,0.76]
[1765223904773,14.35400646,133.99,133.97,0.1]
[1765223904774,14.98395138,133.98,133.97,0.1]
[1765223905699,22.44775194,133.98,133.97,0.1]
[1765223906496,22.90775194,133.98,133.97,0.1]
[1765223906715,27.8218691,133.98,133.97,0.1]
[1765223907005,44.1307331,133.98,133.97,0.1]
[1765223907907,43.6707331,133.98,133.97,0.1]
[1765223908109,44.1307331,133.98,133.97,0.1]
[1765223908311,8.80994492,133.94,133.9,0.1]
[1765223908615,14.98395138,133.91,133.9,0.1]
[1765223908816,8.80994492,133.87,133.85,0.1]
[1765223908990,8.80994492,133.85,133.8,0.66]
[1765223909186,18.54285541,133.84,133.79,0.1]
[1765223909484,33.33352803,133.85,133.79,0.1]
[1765223909485,8.80994492,133.82,133.8,0.66]
[1765223909689,16.98994492,133.81,133.8,0.66]
[1765223911391,16.98994492,133.81,133.8,8.13384155]
[1765223911707,8.80994492,133.8,133.79,0.1]
[1765223912014,14.98395138,133.8,133.79,0.76]
[1765223912317,8.18,133.82,133.81,7.47328301]
[1765223912815,8.18,133.82,133.81,8.13328301]
[1765223913288,16.308864,133.85,133.81,8.13328301]
[1765223913289,8.18,133.83,133.81,26.81649054]
[1765223913629,8.18,133.83,133.82,0.66]
[1765223914395,8.80994492,133.85,133.82,0.66]
[1765223914590,8.18,133.85,133.82,0.66]
[1765223915420,8.18,133.85,133.83,7.47216618]
[1765223915916,8.18,133.85,133.84,0.66]
[1765223918115,8.18,133.85,133.84,8.13160789]
[1765223919423,8.18,133.85,133.83,7.47213902]
[1765223919726,8.80994492,133.84,133.82,0.66]
[1765223920333,8.80994492,133.84,133.82,8.13270685]
[1765223920841,14.98395138,133.84,133.82,8.13270685]
[1765223921326,8.80994492,133.84,133.83,0.66]
[1765223922818,14.98395138,133.84,133.81,8.13309168]
[1765223923018,8.18,133.83,133.82,0.66]
[1765223923226,14.35400646,133.83,133.8,7.47367618]
[1765223923410,14.35400646,133.83,133.8,8.13367618]
[1765223923609,6.17400646,133.82,133.79,0.1]
[1765223923826,8.18,133.81,133.79,0.76]
[1765223924330,14.35400646,133.81,133.79,0.76]
[1765223924824,14.98395138,133.8,133.79,0.1]
[1765223926424,23.16395138,133.8,133.79,0.1]
[1765223926625,30.63779293,133.8,133.79,0.1]
[1765223927922,23.16395138,133.8,133.79,0.1]
[1765223928314,30.63779293,133.8,133.79,0.1]
[1765223929127,23.16395138,133.8,133.79,0.1]
[1765223931528,31.09779293,133.8,133.79,0.1]
[1765223931731,35.99615289,133.8,133.79,0.1]
[1765223932116,35.99615289,133.8,133.77,0.1]
[1765223932117,25.11880892,133.78,133.77,0.1]
[1765223932332,23.16395138,133.78,133.77,0.1]
[1765223933310,30.63891026,133.78,133.77,0.1]
[1765223933930,22.45891026,133.78,133.77,0.1]
[1765223934113,30.63891026,133.78,133.77,0.1]
[1765223934718,16.98994492,133.78,133.77,0.1]
[1765223934927,23.16395138,133.78,133.77,0.1]
[1765223935115,16.98994492,133.78,133.77,0.1]
[1765223935516,16.98994492,133.78,133.77,0.8]
[1765223935517,8.18,133.78,133.77,0.8]
[1765223937319,8.18,133.78,133.77,8.27551767]
[1765223938242,8.18,133.78,133.77,0.1]
[1765223938243,23.16395138,133.78,133.77,0.1]
[1765223938425,36.0095847,133.78,133.77,0.1]
[1765223939021,35.5495847,133.78,133.77,0.1]
[1765223939228,36.0095847,133.78,133.77,0.1]
[1765223939625,35.5495847,133.78,133.77,0.1]
[1765223939823,8.80994492,133.77,133.71,0.7]
[1765223940115,8.80994492,133.71,133.69,0.1]
[1765223940320,14.37400646,133.7,133.69,0.1]
[1765223941021,6.17400646,133.7,133.69,0.1]
[1765223941239,14.37400646,133.7,133.69,0.1]
[1765223941439,6.17400646,133.7,133.69,0.1]
[1765223941655,14.37400646,133.7,133.69,0.1]
[1765223942229,30.66338294,133.7,133.69,0.1]
[1765223942415,36.03578827,133.7,133.69,0.1]
[1765223942637,36.03578827,133.7,133.63,0.1]
[1765223942638,83.80994492,133.69,133.63,0.1]
[1765223942854,31.29281538,133.64,133.63,0.1]
[1765223943146,19.89635671,133.64,133.63,0.1]
[1765223943353,28.09635671,133.64,133.63,0.1]
[1765223943932,19.89635671,133.64,133.63,0.1]
[1765223944148,8.80994492,133.64,133.63,0.1]
[1765223944341,8.2,133.65,133.63,0.78]
[1765223944723,6.17400646,133.72,133.64,6.17400646]
[1765223944925,4.90768675,133.73,133.7,6.17400646]
[1765223945149,75.0,133.82,133.7,6.17400646]
[1765223945150,42.75801929,133.83,133.72,6.17400646]
[1765223945327,6.17400646,133.8,133.73,6.85400646]
[1765223945528,8.2,133.79,133.74,26.17018094]
[1765223945728,13.11148297,133.79,133.74,26.85018094]
[1765223945949,13.11148297,133.79,133.75,6.85400646]
[1765223946144,8.2,133.79,133.75,6.85400646]
[1765223946348,8.2,133.79,133.76,0.68]
[1765223946843,13.11667051,133.79,133.76,0.68]
[1765223947059,8.2,133.79,133.76,0.68]
[1765223947224,22.84062819,133.79,133.76,0.68]
[1765223947545,17.91789159,133.79,133.76,8.15607578]
[1765223947763,8.2,133.79,133.76,8.15607578]
[1765223947950,13.12640893,133.79,133.77,0.68]
[1765223949225,8.2,133.79,133.77,0.68]
[1765223949525,8.2,133.79,133.77,8.15510051]
[1765223949723,13.13722178,133.79,133.77,8.15510051]
[1765223950065,8.2,133.79,133.78,0.68]
[1765223950425,13.13660918,133.79,133.78,0.68]
[1765223950739,8.2,133.81,133.78,0.68]
[1765223950937,4.94428533,133.82,133.79,9.71789159]
[1765223951149,4.94428533,133.83,133.81,9.71789159]
[1765223951336,13.14633196,133.85,133.82,0.68]
[1765223951650,13.14633196,133.85,133.83,7.47216618]
[1765223951651,4.94633196,133.84,133.83,7.47216618]
[1765223951847,4.94633196,133.84,133.82,8.15254341]
[1765223952031,8.2,133.85,133.83,0.68]
[1765223952231,13.14999457,133.85,133.83,0.68]
[1765223952453,8.2,133.85,133.83,0.68]
[1765223952859,29.61894535,133.84,133.77,16.308864]
[1765223953033,18.52783651,133.81,133.78,0.68]
[1765223953231,13.15392878,133.8,133.78,0.68]
[1765223953545,13.15392878,133.8,133.78,8.15485502]
[1765223953748,13.15392878,133.8,133.78,0.68]
[1765223954340,13.15392878,133.8,133.78,8.15490712]
[1765223955238,13.15392878,133.8,133.78,7.47490712]
[1765223955443,13.15392878,133.8,133.78,8.15490712]
[1765223955760,13.15392878,133.8,133.78,0.68]
[1765223956366,13.15392878,133.8,133.78,8.15484774]
[1765223957056,13.15392878,133.8,133.79,0.68]
[1765223957442,4.95392878,133.8,133.79,0.68]
[1765223957754,4.95392878,133.8,133.77,8.15532717]
[1765223958447,26.72783651,133.81,133.78,0.68]
[1765223958866,17.00994492,133.81,133.78,8.15472617]
[1765223959161,4.95999471,133.8,133.78,8.15472617]
[1765223959363,26.72783651,133.81,133.78,8.15472617]
[1765223959773,17.00994492,133.81,133.79,0.68]
[1765223959959,26.72783651,133.81,133.76,0.68]
[1765223960170,26.72783651,133.81,133.77,0.68]
[1765223961565,26.72783651,133.81,133.78,7.47495888]
[1765223961947,8.2,133.81,133.79,0.7]
[1765223962175,4.96206018,133.83,133.79,0.7]
[1765223962451,8.2,133.83,133.79,10.41789159]
[1765223962659,8.2,133.83,133.78,26.16235609]
[1765223962660,8.80994492,133.86,133.8,0.7]
[1765223962851,8.2,133.86,133.81,9.71789159]
[1765223963052,8.80994492,133.87,133.82,9.71789159]
[1765223963267,8.2,133.86,133.83,0.7]
[1765223963651,8.2,133.86,133.83,8.17169485]
[1765223963866,26.72783651,133.86,133.83,0.7]
[1765223964077,26.72783651,133.86,133.83,8.17216167]
[1765223965784,9.71789159,133.84,133.81,7.4728813]
[1765223965962,8.2,133.83,133.81,8.1728813]
[1765223966783,8.2,133.83,133.81,7.4728813]
[1765223967144,8.2,133.83,133.8,7.47384155]
[1765223967363,8.2,133.83,133.8,8.17384155]
[1765223968177,8.2,133.83,133.8,0.7]
[1765223970599,8.2,133.83,133.81,7.47328301]
[1765223970788,9.71789159,133.85,133.81,7.47328301]
[1765223970980,8.18,133.83,133.82,0.7]
[1765223971579,9.71789159,133.84,133.82,0.7]
[1765223972092,9.71789159,133.84,133.81,7.47328301]
[1765223972394,9.71789159,133.84,133.81,8.17328301]
[1765223972590,9.71789159,133.83,133.81,7.47328301]
[1765223972792,8.18,133.82,133.81,7.47328301]
[1765223972987,8.18,133.82,133.8,7.47362766]
[1765223973195,8.18,133.82,133.81,7.47328301]
[1765223973594,8.18,133.82,133.79,7.47401224]
[1765223973812,17.89789159,133.82,133.79,8.17401224]
[1765223973984,8.18,133.82,133.8,7.47370546]
[1765223975595,17.89789159,133.82,133.79,7.47436711]
[1765223975983,17.89789159,133.82,133.79,8.17436711]
[1765223976311,8.18,133.82,133.79,26.16036755]
[1765223976489,8.18,133.82,133.8,0.7]
[1765223976812,8.18,133.82,133.81,7.47328301]
[1765223977115,8.18,133.82,133.81,8.17328301]
[1765223980513,17.89789159,133.82,133.78,0.7]
[1765223980715,8.80994492,133.78,133.74,7.47697671]
[1765223981012,9.71789159,133.76,133.74,7.47697671]
[1765223981316,17.89789159,133.77,133.74,8.17697671]
[1765223982593,9.71789159,133.76,133.74,8.17697671]
[1765223983910,17.89789159,133.77,133.74,8.17697671]
[1765223986493,9.71789159,133.78,133.75,0.7]
[1765223986713,17.91789159,133.77,133.75,0.7]
[1765223987722,17.91789159,133.77,133.76,7.47607655]
[1765223987907,8.2,133.77,133.76,7.47607655]
[1765223988093,8.2,133.77,133.76,8.17607655]
[1765223989006,17.91789159,133.77,133.75,7.47638445]
[1765223989320,17.91789159,133.77,133.75,8.17638445]
[1765223990123,8.2,133.77,133.75,8.17638445]
[1765223990298,8.2,133.77,133.76,0.7]
[1765223991412,18.37789159,133.77,133.71,37.39339257]
[1765223991610,9.71789159,133.75,133.74,7.47719455]
[1765223991812,9.71789159,133.75,133.73,7.47771272]
[1765223992019,8.2,133.74,133.72,7.47831289]
[1765223992622,8.2,133.74,133.73,0.7]
[1765223993032,9.71789159,133.8,133.73,18.59789159]
[1765223993326,8.2,133.81,133.75,9.71789159]
[1765223993523,17.91789159,133.81,133.75,9.71789159]
[1765223993708,17.91789159,133.81,133.76,0.7]
[1765223994114,9.71789159,133.78,133.72,47.10945605]
[1765223994306,8.2,133.77,133.74,0.7]
[1765223995635,8.2,133.77,133.74,19.39231969]
[1765223995805,8.2,133.77,133.75,0.7]
[1765223996242,8.2,133.77,133.75,8.17663551]
[1765223997736,8.2,133.77,133.75,26.86822429]
[1765223997908,8.2,133.77,133.76,0.7]
[1765223999810,8.2,133.77,133.76,8.17607655]
[1765224000435,13.80334845,133.78,133.73,9.71789159]
[1765224000627,4.99340353,133.77,133.74,7.47684849]
[1765224000934,8.2,133.76,133.75,7.47663551]
[1765224001131,8.2,133.76,133.72,28.4127992]
[1765224001315,8.2,133.76,133.74,7.47687043]
[1765224001633,8.2,133.76,133.74,7.4766972]
[1765224001836,17.91789159,133.76,133.72,0.7]
[1765224002037,8.2,133.76,133.74,7.47708487]
[1765224003111,8.2,133.76,133.72,0.7]
[1765224003306,8.2,133.76,133.74,7.4771394]
[1765224003535,8.2,133.76,133.72,0.7]
[1765224003835,8.80994492,133.69,133.62,0.7]
[1765224004040,18.52783651,133.65,133.55,0.1]
[1765224004216,17.00994492,133.64,133.6,17.42722796]
[1765224004412,26.17801046,133.7,133.63,10.51789159]
[1765224004413,6.23574885,133.7,133.63,10.51789159]
[1765224004737,17.00994492,133.69,133.64,9.71789159]
[1765224004936,17.00994492,133.69,133.65,0.7]
[1765224005443,17.00994492,133.69,133.66,7.4816699]
[1765224005842,17.00994492,133.69,133.66,26.88584467]
[1765224006038,81.23574885,133.77,133.68,9.71789159]
[1765224006354,25.85347544,133.77,133.7,9.71789159]
[1765224006666,9.71789159,133.73,133.67,0.7]
[1765224006832,8.2,133.73,133.7,9.71789159]
[1765224007144,17.00994492,133.75,133.71,9.71789159]
[1765224007350,8.2,133.75,133.71,9.71789159]
[1765224007550,8.2,133.75,133.71,8.17850769]
[1765224007865,8.2,133.75,133.7,7.4792883]
[1765224007866,18.52783651,133.73,133.7,7.4792883]
[1765224008156,8.2,133.72,133.7,7.4792883]
[1765224008751,8.2,133.72,133.71,7.47887218]
[1765224008932,8.2,133.72,133.65,45.58883666]
[1765224009129,8.80994492,133.71,133.67,6.20921218]
[1765224009449,15.0191571,133.68,133.63,0.1]
[1765224009751,8.2,133.67,133.63,6.30921218]
[1765224010054,8.2,133.67,133.63,7.00921218]
[1765224010238,8.2,133.67,133.64,0.7]
[1765224010922,8.80994492,133.64,133.63,0.1]
[1765224011126,28.17831815,133.64,133.63,0.1]
[1765224011348,28.63255175,133.64,133.63,0.1]
[1765224011548,29.90612915,133.64,133.63,0.1]
[1765224011845,36.11534133,133.64,133.6,16.72722796]
[1765224012148,15.0191571,133.61,133.6,16.72722796]
[1765224012351,21.96333957,133.61,133.6,16.72722796]
[1765224012540,28.53255175,133.61,133.6,16.72722796]
[1765224013681,36.01702147,133.61,133.6,16.72722796]
[1765224014178,28.53255175,133.61,133.6,16.72722796]
[1765224014374,28.17255175,133.61,133.6,16.72722796]
[1765224014582,36.01702147,133.61,133.6,16.72722796]
[1765224014775,28.53255175,133.61,133.6,16.72722796]
[1765224014980,36.01702147,133.61,133.6,16.72722796]
[1765224015164,36.01702147,133.61,133.55,0.1]
[1765224015165,8.80994492,133.6,133.55,0.1]
[1765224015361,6.20921218,133.58,133.55,0.1]
[1765224015561,13.15339465,133.58,133.55,0.1]
[1765224016178,13.15339465,133.58,133.55,0.8]
[1765224016383,8.2,133.58,133.55,0.8]
[1765224017886,8.2,133.58,133.56,7.48727163]
[1765224018183,13.12082506,133.58,133.56,7.48727163]
[1765224018351,13.12082506,133.58,133.57,0.7]
[1765224018352,8.2,133.58,133.57,0.7]
[1765224018681,6.19174331,133.68,133.57,6.90921218]
[1765224018877,13.12337241,133.67,133.63,6.20921218]
[1765224019079,4.92337241,133.66,133.63,6.20921218]
[1765224019258,8.2,133.67,133.64,0.7]
[1765224019659,14.40921218,133.67,133.61,6.90921218]
[1765224019973,8.80994492,133.66,133.62,7.48390959]
[1765224020367,8.80994492,133.66,133.62,8.18390959]
[1765224020574,8.80994492,133.66,133.63,0.7]
[1765224021291,8.80994492,133.66,133.63,6.90921218]
[1765224021493,8.2,133.67,133.63,6.90921218]
[1765224021683,8.2,133.67,133.64,6.91921218]
[1765224021872,13.12803294,133.67,133.64,14.40177199]
[1765224022072,13.12803294,133.67,133.64,13.69177199]
[1765224022271,13.12803294,133.67,133.65,0.71]
[1765224023165,13.12803294,133.67,133.64,32.39874594]
[1765224023166,13.12803294,133.67,133.64,7.48255981]
[1765224023371,4.92803294,133.66,133.61,24.9196387]
[1765224023582,4.92803294,133.66,133.64,7.48263341]
[1765224023798,13.12803294,133.67,133.64,7.48263341]
[1765224024386,13.12803294,133.67,133.65,0.71]
[1765224025192,4.92803294,133.66,133.65,0.71]
[1765224025678,8.2,133.69,133.65,6.91921218]
[1765224025871,4.94126334,133.68,133.66,7.4816699]
[1765224026069,4.94126334,133.68,133.67,6.20921218]
[1765224026302,4.94126334,133.71,133.67,6.20921218]
[1765224026472,4.94126334,133.7,133.68,6.91921218]
[1765224026792,4.94126334,133.72,133.69,6.20921218]
[1765224027092,4.94126334,133.73,133.71,6.20921218]
[1765224027271,13.14126334,133.75,133.71,6.20921218]
[1765224027473,4.94126334,133.74,133.72,0.71]
[1765224027677,4.94126334,133.73,133.72,0.71]
[1765224027990,4.94126334,133.74,133.69,14.39869572]
[1765224028193,4.94126334,133.73,133.7,0.71]
[1765224028902,4.94126334,133.73,133.69,7.47948354]
[1765224029090,8.2,133.72,133.69,8.18948354]
[1765224029617,8.2,133.72,133.7,0.71]
[1765224029910,8.2,133.72,133.7,8.18925004]
[1765224030702,8.2,133.72,133.7,0.71]
[1765224030894,8.2,133.72,133.69,7.47980456]
[1765224031104,8.2,133.72,133.69,8.18980456]
[1765224031495,8.2,133.72,133.67,6.20921218]
[1765224031496,14.11940135,133.71,133.66,0.71]
[1765224031721,11.15866861,133.7,133.66,0.71]
[1765224032004,8.2,133.69,133.66,0.71]
[1765224032303,8.2,133.69,133.63,16.308864]
[1765224032304,19.35866861,133.69,133.63,6.91921218]
[1765224032609,4.94945643,133.68,133.64,0.71]
[1765224033210,6.19174331,133.74,133.67,6.20921218]
[1765224033380,6.19174331,133.74,133.64,43.20842343]
[1765224033381,13.15597822,133.73,133.69,6.20921218]
[1765224033714,8.2,133.73,133.69,6.20921218]
[1765224034006,13.15493237,133.73,133.7,0.71]
[1765224034217,8.2,133.73,133.7,8.18907935]
[1765224034505,13.15602564,133.73,133.7,8.18907935]
[1765224035411,13.15602564,133.73,133.71,0.71]
[1765224035616,8.2,133.73,133.71,0.71]
[1765224036210,8.2,133.73,133.71,8.18871695]
[1765224036721,8.2,133.73,133.7,7.47922262]
[1765224036925,13.51685281,133.73,133.68,25.62000442]
[1765224037122,20.63488192,133.73,133.67,6.20921218]
[1765224037419,4.95790804,133.72,133.68,0.71]
[1765224037613,4.95790804,133.72,133.68,6.91921218]
[1765224038008,4.95790804,133.72,133.69,0.71]
[1765224038409,12.79644402,133.72,133.68,7.48055056]
[1765224038605,6.20921218,133.69,133.63,24.91670512]
[1765224038908,4.95790804,133.7,133.67,6.20921218]
[1765224039093,13.15790804,133.71,133.67,6.20921218]
[1765224039300,13.15790804,133.71,133.68,0.71]
[1765224040595,13.15790804,133.71,133.69,7.47999102]
[1765224040902,8.2,133.71,133.69,7.47999102]
[1765224041118,8.2,133.71,133.7,0.71]
[1765224041416,4.95653222,133.73,133.7,0.71]
[1765224041620,13.15653222,133.74,133.7,0.71]
[1765224042224,4.95653222,133.73,133.7,0.71]
[1765224042726,4.95653222,133.73,133.7,8.1890875]
[1765224043130,6.56921218,133.72,133.66,62.81]
[1765224043327,17.00994492,133.71,133.66,0.71]
[1765224043518,4.95744561,133.7,133.66,0.71]
[1765224044128,4.95744561,133.7,133.67,7.48091086]
[1765224044331,4.95744561,133.7,133.68,6.20921218]
[1765224044527,8.2,133.71,133.68,6.91921218]
[1765224044723,8.2,133.71,133.68,6.20921218]
[1765224044930,8.2,133.73,133.7,6.20921218]
[1765224045116,4.95856643,133.75,133.71,0.71]
[1765224045314,8.80994492,133.76,133.74,6.20921218]
[1765224045315,2.42856643,133.76,133.74,6.20921218]
[1765224045522,2.42856643,133.8,133.78,16.308864]
[1765224045728,0.2,133.81,133.79,6.20921218]
[1765224046023,0.2,133.81,133.78,24.508864]
[1765224046223,0.2,133.81,133.8,7.47384155]
[1765224046438,0.2,133.81,133.76,18.68982269]
[1765224046624,0.68,133.8,133.76,24.89903487]
[1765224046829,0.68,133.8,133.77,7.47537765]
[1765224047143,8.88,133.8,133.76,7.47593251]
[1765224047641,0.68,133.79,133.76,7.47593251]
[1765224048330,0.68,133.79,133.74,24.90205163]
[1765224048331,0.68,133.79,133.75,7.47663551]
[1765224049938,0.68,133.79,133.75,13.68584769]
[1765224050249,0.68,133.79,133.74,26.170034]
[1765224050447,0.68,133.79,133.75,6.20921218]
[1765224051429,0.68,133.79,133.76,7.47607655]
[1765224051630,0.68,133.79,133.76,69.57607655]
[1765224053020,0.68,133.79,133.74,18.69283945]
[1765224053227,8.80994492,133.78,133.72,41.21327916]
[1765224053420,8.80994492,133.78,133.72,87.00441516]
[1765224053623,0.68,133.77,133.73,6.20921218]
[1765224053856,0.68,133.77,133.74,7.47681449]
[1765224054060,0.68,133.77,133.75,7.47659841]
[1765224054931,0.68,133.77,133.74,7.47700318]
[1765224055136,0.68,133.77,133.73,7.47753746]
[1765224055943,8.88,133.77,133.73,7.47753746]
[1765224056139,8.80994492,133.76,133.72,7.47812896]
[1765224056450,8.80994492,133.76,133.7,7.47928761]
[1765224056451,6.20921218,133.74,133.7,7.47928761]
[1765224056659,8.2,133.73,133.7,7.47928761]
[1765224056953,8.88,133.73,133.71,7.47882782]
[1765224057135,8.88,133.73,133.69,26.17932739]
[1765224058551,8.88,133.73,133.69,6.20921218]
[1765224060041,16.28696739,133.75,133.69,16.308864]
[1765224060042,0.68,133.75,133.69,16.308864]
[1765224060241,0.68,133.75,133.71,6.20921218]
[1765224060462,0.68,133.75,133.72,6.20921218]
[1765224060669,0.68,133.75,133.73,7.47775368]
[1765224061658,8.2,133.76,133.73,13.68696586]
[1765224061967,8.2,133.76,133.74,6.20921218]
[1765224062144,8.88,133.79,133.75,6.20921218]
[1765224062345,13.84569111,133.79,133.76,6.20921218]
[1765224062564,8.88,133.79,133.76,6.20921218]
[1765224062764,8.2,133.79,133.77,7.47551767]
[1765224063166,4.96857502,133.78,133.77,7.47551767]
[1765224063957,5.64857502,133.78,133.76,7.4758626]
[1765224064551,4.96857502,133.78,133.77,6.20921218]
[1765224064865,4.96857502,133.8,133.78,7.47495888]
[1765224065055,0.2,133.81,133.79,6.20921218]
[1765224065371,5.17780908,133.81,133.8,6.20921218]
[1765224065547,0.2,133.81,133.8,6.20921218]
[1765224065969,1e-08,133.81,133.8,6.20921218]
[1765224066170,1e-08,133.81,133.8,14.38921218]
[1765224066752,1e-08,133.81,133.8,7.47384155]
[1765224067261,1e-08,133.81,133.8,13.68305373]
[1765224068846,1e-08,133.81,133.8,17.18493752]
[1765224069286,1e-08,133.81,133.8,7.47384155]
[1765224069479,1e-08,133.81,133.8,17.18493752]
[1765224071071,1e-08,133.81,133.8,79.28493752]
[1765224072280,1e-08,133.81,133.8,87.46493752]
[1765224072857,1e-08,133.81,133.8,77.75384155]
[1765224073064,1e-08,133.81,133.8,87.46493752]
[1765224074094,8.2,133.89,133.8,91.12984514]
[1765224074258,0.68,133.92,133.88,9.71109597]
[1765224074462,0.88,133.91,133.89,9.71109597]
[1765224075192,0.2,133.91,133.89,9.71109597]
[1765224075402,0.68,133.9,133.83,16.308864]
[1765224075680,0.68,133.9,133.85,9.71109597]
[1765224075979,7.46881768,133.89,133.85,7.47094248]
[1765224076188,17.17991365,133.89,133.84,7.47143174]
[1765224076355,0.68,133.88,133.85,7.47089414]
[1765224076557,0.68,133.88,133.87,9.71109597]
[1765224077560,0.68,133.88,133.81,16.308864]
[1765224077764,8.80994492,133.83,133.79,7.47416936]
[1765224077982,18.52104089,133.81,133.75,17.18762947]
[1765224078162,18.52104089,133.79,133.72,9.71109597]
[1765224078367,18.52104089,133.79,133.73,9.71109597]
[1765224078568,0.68,133.78,133.75,7.47625402]
[1765224078777,0.68,133.78,133.74,7.47710117]
[1765224078994,0.68,133.78,133.75,7.47648255]
[1765224080091,0.68,133.78,133.74,7.47719455]
[1765224080384,0.68,133.78,133.74,35.88127691]
[1765224080594,9.71109597,133.75,133.68,9.71109597]
[1765224080784,16.98994492,133.77,133.67,18.70215161]
[1765224080785,9.71109597,133.72,133.67,18.70215161]
[1765224080988,8.18,133.73,133.68,7.48014908]
[1765224081174,19.20104089,133.72,133.66,0.1]
[1765224081374,9.71109597,133.71,133.66,0.1]
[1765224081568,0.67,133.71,133.66,0.1]
[1765224081785,18.52104089,133.72,133.66,0.1]
[1765224081786,0.67,133.7,133.66,0.1]
[1765224082170,0.67,133.7,133.66,26.28584467]
[1765224082378,0.67,133.72,133.67,9.71109597]
[1765224083293,0.67,133.72,133.66,7.5816699]
[1765224083294,9.71109597,133.7,133.66,7.5816699]
[1765224083677,0.67,133.69,133.66,7.5816699]
[1765224084802,8.80994492,133.71,133.66,35.99694064]
[1765224085010,0.67,133.7,133.66,35.99694064]
[1765224086603,0.67,133.7,133.66,0.1]
[1765224086896,10.38109597,133.7,133.66,0.1]
[1765224087096,18.52104089,133.69,133.66,0.1]
[1765224087303,27.39104089,133.69,133.66,0.1]
[1765224087505,0.67,133.68,133.66,0.1]
[1765224089225,8.2,133.69,133.66,9.81109597]
[1765224089383,8.87,133.69,133.66,9.81109597]
[1765224089587,0.67,133.68,133.66,0.1]
[1765224097890,8.15059423,133.68,133.66,0.1]
[1765224098414,0.67,133.67,133.66,0.1]
[1765224099101,19.19104089,133.67,133.66,0.1]
[1765224099300,0.67,133.67,133.66,0.1]
[1765224099511,8.87,133.67,133.66,0.1]
[1765224101213,8.87,133.67,133.6,8.2]
[1765224101214,8.80994492,133.66,133.61,7.4840706]
[1765224101409,9.47994492,133.66,133.6,9.71109597]
[1765224101614,0.67,133.65,133.62,7.48388683]
[1765224101818,0.67,133.65,133.63,7.48323918]
[1765224102121,0.67,133.65,133.6,28.42304969]
[1765224102122,0.67,133.65,133.64,7.48278958]
[1765224102412,0.67,133.68,133.64,98.0008595]
[1765224102597,8.2,133.69,133.65,9.71109597]
[1765224102803,8.87,133.69,133.66,9.71109597]
[1765224103138,8.87,133.69,133.65,9.71109597]
[1765224104342,7.4790568,133.71,133.62,8.2]
[1765224104343,0.67,133.72,133.68,9.71109597]
[1765224104547,0.67,133.72,133.69,9.71109597]
[1765224104842,0.67,133.72,133.67,9.71109597]
[1765224105219,0.67,133.72,133.68,9.71109597]
[1765224106346,8.2,133.73,133.7,7.47943156]
[1765224106541,8.2,133.73,133.7,26.17801046]
[1765224106864,0.67,133.72,133.69,7.47989368]
[1765224108147,0.67,133.72,133.69,26.17987124]
[1765224108347,8.2,133.73,133.7,9.71109597]
[1765224108822,8.87,133.73,133.69,35.89096721]
[1765224109022,8.2,133.73,133.69,35.89096721]
[1765224109226,8.87,133.73,133.69,35.89096721]
[1765224110664,8.2,133.73,133.71,17.18996815]
[1765224111161,23.47594741,133.78,133.71,17.18996815]
[1765224111162,8.2,133.76,133.71,35.99714861]
[1765224111368,8.2,133.76,133.71,98.09714861]
[1765224111669,0.72,133.75,133.71,97.98714861]
[1765224115568,0.72,133.75,133.71,88.27605264]
[1765224115871,0.72,133.75,133.71,97.98714861]
[1765224116448,0.72,133.75,133.72,9.71109597]
[1765224116760,0.72,133.75,133.71,97.98714861]
[1765224117162,0.72,133.74,133.71,88.27605264]
[1765224117368,0.72,133.74,133.71,62.1]
[1765224117666,0.72,133.74,133.71,69.57874666]
[1765224119849,8.19721569,133.74,133.7,9.71109597]
[1765224120050,5.6860462,133.74,133.71,7.47868809]